[Event "Titled Tuesday Blitz August 22 Late 2023"]
[White "Delorme, Axel"]
[Black "Petersson, Kjell"]
[WhiteFideId "632023"]
[BlackFideId "1705148"]
[WhiteElo "2374"]
[BlackElo "2159"]
[Result "1-0"]
[Round "3"]
[TimeControl "180+1"]
[Date "2023.08.22"]
[WhiteClock "0:00:15"]
[BlackClock "0:00:01"]
[Board "205"]

1. e4 {[%clk 0:00:37]}  c5 {[%clk 0:02:41]} 2. d4 {[%clk 0:00:38]}  cxd4 {[%clk 0:02:39]} 3. Nf3 {[%clk 0:00:39]}  d6 {[%clk 0:02:36]} 4. Qxd4 {[%clk 0:00:39]}  Nc6 {[%clk 0:02:33]} 5. Bb5 {[%clk 0:00:38]}  Bd7 {[%clk 0:02:33]} 6. Bxc6 {[%clk 0:00:39]}  Bxc6 {[%clk 0:02:33]} 7. Nc3 {[%clk 0:00:40]}  e6 {[%clk 0:02:31]} 8. Bg5 {[%clk 0:00:40]}  Nf6 {[%clk 0:02:28]} 9. Qd3 {[%clk 0:00:39]}  Be7 {[%clk 0:02:28]} 10. Nd4 {[%clk 0:00:18]}  Rc8 {[%clk 0:02:16]} 11. O-O-O {[%clk 0:00:19]}  O-O {[%clk 0:02:14]} 12. Kb1 {[%clk 0:00:19]}  Qa5 {[%clk 0:02:08]} 13. f4 {[%clk 0:00:19]}  h6 {[%clk 0:02:01]} 14. h4 {[%clk 0:00:19]}  Rfd8 {[%clk 0:01:58]} 15. f5 {[%clk 0:00:19]}  e5 {[%clk 0:01:34]} 16. Bxf6 {[%clk 0:00:19]}  Bxf6 {[%clk 0:01:28]} 17. Nf3 {[%clk 0:00:20]}  b5 {[%clk 0:01:10]} 18. g4 {[%clk 0:00:19]}  b4 {[%clk 0:01:08]} 19. Nd5 {[%clk 0:00:13]}  Bxd5 {[%clk 0:01:06]} 20. exd5 {[%clk 0:00:14]}  e4 {[%clk 0:01:01]} 21. Qxe4 {[%clk 0:00:14]}  Re8 {[%clk 0:00:58]} 22. Qd3 {[%clk 0:00:14]}  b3 {[%clk 0:00:52]} 23. axb3 {[%clk 0:00:13]}  Be5 {[%clk 0:00:41]} 24. g5 {[%clk 0:00:13]}  h5 {[%clk 0:00:40]} 25. f6 {[%clk 0:00:13]}  Rc5 {[%clk 0:00:32]} 26. fxg7 {[%clk 0:00:11]}  Bxg7 {[%clk 0:00:32]} 27. g6 {[%clk 0:00:11]}  Rec8 {[%clk 0:00:23]} 28. gxf7+ {[%clk 0:00:10]}  Kf8 {[%clk 0:00:24]} 29. Rh2 {[%clk 0:00:06]}  Qc7 {[%clk 0:00:21]} 30. Ng5 {[%clk 0:00:06]}  Qa5 {[%clk 0:00:14]} 31. Ne6+ {[%clk 0:00:07]}  Kxf7 {[%clk 0:00:11]} 32. Nxc5 {[%clk 0:00:08]}  Qxc5 {[%clk 0:00:10]} 33. Rf1+ {[%clk 0:00:09]}  Kg8 {[%clk 0:00:10]} 34. Rg2 {[%clk 0:00:09]}  Qc7 {[%clk 0:00:07]} 35. Qg6 {[%clk 0:00:09]}  Rf8 {[%clk 0:00:05]} 36. Rxf8+ {[%clk 0:00:08]}  Kxf8 {[%clk 0:00:05]} 37. Rf2+ {[%clk 0:00:09]}  Kg8 {[%clk 0:00:05]} 38. Qe8+ {[%clk 0:00:09]}  Kh7 {[%clk 0:00:05]} 39. Qxh5+ {[%clk 0:00:10]}  Kg8 {[%clk 0:00:05]} 40. Qe8+ {[%clk 0:00:11]}  Kh7 {[%clk 0:00:05]} 41. h5 {[%clk 0:00:11]}  Qc5 {[%clk 0:00:04]} 42. Qg6+ {[%clk 0:00:11]}  Kg8 {[%clk 0:00:03]} 43. Rg2 {[%clk 0:00:11]}  Qc7 {[%clk 0:00:02]} 44. Qxg7+ {[%clk 0:00:11]}  Qxg7 {[%clk 0:00:02]} 45. Rxg7+ {[%clk 0:00:12]}  Kxg7 {[%clk 0:00:03]} 46. c4 {[%clk 0:00:12]}  Kh6 {[%clk 0:00:04]} 47. c5 {[%clk 0:00:13]}  dxc5 {[%clk 0:00:04]} 48. d6 {[%clk 0:00:14]}  Kxh5 {[%clk 0:00:01]} 49. d7 {[%clk 0:00:15]} 1-0


[Site "https://www.chess.com"]

[Event "Titled Tuesday Blitz August 22 Late 2023"]
[White "laskakid"]
[Black "Bogaudinov, Rushan"]
[BlackFideId "4129288"]
[WhiteElo "2129"]
[BlackElo "2371"]
[Result "0-1"]
[Round "3"]
[TimeControl "180+1"]
[Date "2023.08.22"]
[WhiteClock "0:00:08"]
[BlackClock "0:00:18"]
[Board "206"]

1. e4 {[%clk 0:03:00]}  c5 {[%clk 0:02:48]} 2. c3 {[%clk 0:03:00]}  e6 {[%clk 0:02:45]} 3. d4 {[%clk 0:02:59]}  d5 {[%clk 0:02:46]} 4. e5 {[%clk 0:02:59]}  Nc6 {[%clk 0:02:45]} 5. Nf3 {[%clk 0:02:59]}  Nge7 {[%clk 0:02:45]} 6. Na3 {[%clk 0:02:57]}  Nf5 {[%clk 0:02:45]} 7. Nc2 {[%clk 0:02:56]}  Qb6 {[%clk 0:02:45]} 8. Bd3 {[%clk 0:02:50]}  cxd4 {[%clk 0:02:44]} 9. cxd4 {[%clk 0:02:48]}  Nb4 {[%clk 0:02:30]} 10. Nxb4 {[%clk 0:02:42]}  Bxb4+ {[%clk 0:02:29]} 11. Kf1 {[%clk 0:02:35]}  Bd7 {[%clk 0:02:26]} 12. Bxf5 {[%clk 0:02:25]}  exf5 {[%clk 0:02:26]} 13. h4 {[%clk 0:02:25]}  Rc8 {[%clk 0:02:23]} 14. a3 {[%clk 0:02:19]}  Be7 {[%clk 0:02:19]} 15. Bg5 {[%clk 0:02:15]}  Bxg5 {[%clk 0:02:07]} 16. hxg5 {[%clk 0:02:15]}  h5 {[%clk 0:02:05]} 17. Qd2 {[%clk 0:01:45]}  a5 {[%clk 0:01:59]} 18. g3 {[%clk 0:01:41]}  a4 {[%clk 0:01:50]} 19. Kg2 {[%clk 0:01:41]}  Rc4 {[%clk 0:01:48]} 20. Rhc1 {[%clk 0:01:32]}  h4 {[%clk 0:01:40]} 21. gxh4 {[%clk 0:01:24]}  Bb5 {[%clk 0:01:32]} 22. Rxc4 {[%clk 0:01:11]}  Bxc4 {[%clk 0:01:31]} 23. Rh1 {[%clk 0:01:09]}  Qb3 {[%clk 0:01:26]} 24. Qa5 {[%clk 0:00:56]}  O-O {[%clk 0:01:24]} 25. Qd2 {[%clk 0:00:34]}  Bd3 {[%clk 0:01:22]} 26. Qe3 {[%clk 0:00:21]}  Rc8 {[%clk 0:01:07]} 27. h5 {[%clk 0:00:21]}  Rc2 {[%clk 0:00:57]} 28. g6 {[%clk 0:00:20]}  Be4 {[%clk 0:00:55]} 29. Qf4 {[%clk 0:00:12]}  Qxb2 {[%clk 0:00:46]} 30. gxf7+ {[%clk 0:00:10]}  Kxf7 {[%clk 0:00:46]} 31. Kg3 {[%clk 0:00:10]}  Qc3 {[%clk 0:00:35]} 32. Rh3 {[%clk 0:00:09]}  Qxa3 {[%clk 0:00:30]} 33. Kh4 {[%clk 0:00:09]}  Qe7+ {[%clk 0:00:25]} 34. Ng5+ {[%clk 0:00:09]}  Kg8 {[%clk 0:00:25]} 35. e6 {[%clk 0:00:08]}  Rc8 {[%clk 0:00:21]} 36. Qe5 {[%clk 0:00:08]}  a3 {[%clk 0:00:20]} 37. Rg3 {[%clk 0:00:08]}  a2 {[%clk 0:00:19]} 38. Kh3 {[%clk 0:00:08]}  a1=Q {[%clk 0:00:19]} 39. Nf7 {[%clk 0:00:08]}  Qh1# {[%clk 0:00:18]} 0-1


[Site "https://www.chess.com"]

[Event "Titled Tuesday Blitz August 22 Late 2023"]
[White "Fernandez, Maria Florencia"]
[Black "Ardito, Andrew"]
[WhiteFideId "116459"]
[BlackFideId "2033976"]
[WhiteElo "2368"]
[BlackElo "2115"]
[Result "0-1"]
[Round "3"]
[TimeControl "180+1"]
[Date "2023.08.22"]
[WhiteClock "0:00:08"]
[BlackClock "0:00:08"]
[Board "207"]

1. d4 {[%clk 0:03:00]}  Nf6 {[%clk 0:03:00]} 2. c4 {[%clk 0:03:00]}  g6 {[%clk 0:03:00]} 3. Nc3 {[%clk 0:02:58]}  Bg7 {[%clk 0:03:00]} 4. e4 {[%clk 0:02:59]}  O-O {[%clk 0:03:01]} 5. Be2 {[%clk 0:02:59]}  d6 {[%clk 0:03:01]} 6. Be3 {[%clk 0:02:59]}  e5 {[%clk 0:03:01]} 7. d5 {[%clk 0:02:59]}  Nbd7 {[%clk 0:02:52]} 8. g4 {[%clk 0:02:58]}  Nc5 {[%clk 0:02:32]} 9. f3 {[%clk 0:02:57]}  a5 {[%clk 0:02:29]} 10. h4 {[%clk 0:02:50]}  h5 {[%clk 0:02:27]} 11. g5 {[%clk 0:02:44]}  Ne8 {[%clk 0:02:18]} 12. Qd2 {[%clk 0:02:39]}  b6 {[%clk 0:02:00]} 13. O-O-O {[%clk 0:02:35]}  Bd7 {[%clk 0:01:24]} 14. Kb1 {[%clk 0:02:20]}  Na4 {[%clk 0:01:16]} 15. Bf1 {[%clk 0:02:11]}  Nxc3+ {[%clk 0:01:15]} 16. Qxc3 {[%clk 0:02:12]}  c5 {[%clk 0:00:58]} 17. dxc6 {[%clk 0:02:05]}  Bxc6 {[%clk 0:00:58]} 18. Ne2 {[%clk 0:01:41]}  Qc7 {[%clk 0:00:56]} 19. Nc1 {[%clk 0:01:36]}  Rb8 {[%clk 0:00:52]} 20. Qa3 {[%clk 0:01:31]}  f5 {[%clk 0:00:49]} 21. gxf6 {[%clk 0:01:28]}  Rxf6 {[%clk 0:00:49]} 22. Be2 {[%clk 0:01:26]}  b5 {[%clk 0:00:45]} 23. cxb5 {[%clk 0:01:20]}  Bxb5 {[%clk 0:00:46]} 24. Qb3+ {[%clk 0:01:15]}  Qf7 {[%clk 0:00:37]} 25. Bxb5 {[%clk 0:00:49]}  Qxb3 {[%clk 0:00:34]} 26. Nxb3 {[%clk 0:00:50]}  Rxb5 {[%clk 0:00:34]} 27. Rhf1 {[%clk 0:00:47]}  Nc7 {[%clk 0:00:25]} 28. Nd2 {[%clk 0:00:45]}  d5 {[%clk 0:00:23]} 29. exd5 {[%clk 0:00:41]}  Nxd5 {[%clk 0:00:24]} 30. Bg5 {[%clk 0:00:41]}  Rfb6 {[%clk 0:00:20]} 31. Nc4 {[%clk 0:00:37]}  Nc3+ {[%clk 0:00:20]} 32. Ka1 {[%clk 0:00:26]}  Nxd1 {[%clk 0:00:18]} 33. Nxb6 {[%clk 0:00:25]}  e4 {[%clk 0:00:14]} 34. Rxd1 {[%clk 0:00:12]}  Rxb2 {[%clk 0:00:14]} 35. Rd8+ {[%clk 0:00:07]}  Kh7 {[%clk 0:00:14]} 36. Rd7 {[%clk 0:00:06]}  Rxb6+ {[%clk 0:00:14]} 37. Rxg7+ {[%clk 0:00:04]}  Kxg7 {[%clk 0:00:15]} 38. fxe4 {[%clk 0:00:05]}  Re6 {[%clk 0:00:15]} 39. Bd2 {[%clk 0:00:02]}  Rxe4 {[%clk 0:00:16]} 40. Bxa5 {[%clk 0:00:02]}  Rxh4 {[%clk 0:00:16]} 41. Bc3+ {[%clk 0:00:03]}  Kf7 {[%clk 0:00:16]} 42. Kb2 {[%clk 0:00:02]}  Rh2+ {[%clk 0:00:16]} 43. Kb3 {[%clk 0:00:03]}  Rh3 {[%clk 0:00:17]} 44. a4 {[%clk 0:00:03]}  Ke6 {[%clk 0:00:16]} 45. Kc4 {[%clk 0:00:03]}  Rh4+ {[%clk 0:00:15]} 46. Kb5 {[%clk 0:00:03]}  Kd6 {[%clk 0:00:15]} 47. Bb4+ {[%clk 0:00:02]}  Kc7 {[%clk 0:00:15]} 48. a5 {[%clk 0:00:03]}  Rh1 {[%clk 0:00:14]} 49. Bc5 {[%clk 0:00:02]}  Rb1+ {[%clk 0:00:13]} 50. Kc4 {[%clk 0:00:02]}  g5 {[%clk 0:00:13]} 51. Bb6+ {[%clk 0:00:02]}  Rxb6 {[%clk 0:00:12]} 52. axb6+ {[%clk 0:00:03]}  Kxb6 {[%clk 0:00:13]} 53. Kd4 {[%clk 0:00:03]}  h4 {[%clk 0:00:13]} 54. Ke3 {[%clk 0:00:04]}  g4 {[%clk 0:00:14]} 55. Kf4 {[%clk 0:00:04]}  h3 {[%clk 0:00:14]} 56. Kg3 {[%clk 0:00:05]}  Kc5 {[%clk 0:00:14]} 57. Kh2 {[%clk 0:00:05]}  Kd4 {[%clk 0:00:14]} 58. Kg3 {[%clk 0:00:06]}  Ke3 {[%clk 0:00:15]} 59. Kh2 {[%clk 0:00:07]}  Kf3 {[%clk 0:00:13]} 60. Kg1 {[%clk 0:00:07]}  g3 {[%clk 0:00:13]} 61. Kh1 {[%clk 0:00:08]}  g2+ {[%clk 0:00:06]} 62. Kg1 {[%clk 0:00:06]}  h2+ {[%clk 0:00:06]} 63. Kxh2 {[%clk 0:00:06]}  Kf2 {[%clk 0:00:06]} 64. Kh3 {[%clk 0:00:07]}  g1=Q {[%clk 0:00:07]} 65. Kh4 {[%clk 0:00:07]}  Qg6 {[%clk 0:00:07]} 66. Kh3 {[%clk 0:00:08]}  Qg3# {[%clk 0:00:08]} 0-1


[Site "https://www.chess.com"]

[Event "Titled Tuesday Blitz August 22 Late 2023"]
[White "Joubert, Dantelle"]
[Black "Jakubowska, Anna"]
[WhiteFideId "14310813"]
[BlackFideId "1121952"]
[WhiteElo "2065"]
[BlackElo "2360"]
[Result "0-1"]
[Round "3"]
[TimeControl "180+1"]
[Date "2023.08.22"]
[WhiteClock "0:00:00"]
[BlackClock "0:00:11"]
[Board "210"]

1. e4 {[%clk 0:02:55]}  c5 {[%clk 0:02:59]} 2. Nf3 {[%clk 0:02:55]}  e6 {[%clk 0:02:59]} 3. d3 {[%clk 0:02:54]}  d5 {[%clk 0:02:57]} 4. Nbd2 {[%clk 0:02:53]}  Nc6 {[%clk 0:02:57]} 5. g3 {[%clk 0:02:53]}  Nf6 {[%clk 0:02:54]} 6. Bg2 {[%clk 0:02:53]}  Be7 {[%clk 0:02:54]} 7. O-O {[%clk 0:02:53]}  O-O {[%clk 0:02:54]} 8. Re1 {[%clk 0:02:53]}  Rb8 {[%clk 0:02:54]} 9. c3 {[%clk 0:02:50]}  b5 {[%clk 0:02:53]} 10. h4 {[%clk 0:02:49]}  b4 {[%clk 0:02:52]} 11. Qe2 {[%clk 0:02:48]}  Ba6 {[%clk 0:02:50]} 12. c4 {[%clk 0:02:46]}  dxe4 {[%clk 0:02:46]} 13. dxe4 {[%clk 0:02:44]}  Nd4 {[%clk 0:02:47]} 14. Nxd4 {[%clk 0:02:43]}  cxd4 {[%clk 0:02:47]} 15. b3 {[%clk 0:02:40]}  Nd7 {[%clk 0:02:38]} 16. e5 {[%clk 0:02:17]}  Bb7 {[%clk 0:02:25]} 17. Ne4 {[%clk 0:02:16]}  Nxe5 {[%clk 0:02:18]} 18. Bf4 {[%clk 0:02:07]}  d3 {[%clk 0:02:07]} 19. Qd2 {[%clk 0:02:02]}  Bxe4 {[%clk 0:01:28]} 20. Rxe4 {[%clk 0:01:58]}  Nd7 {[%clk 0:01:12]} 21. Bxb8 {[%clk 0:01:55]}  Qxb8 {[%clk 0:01:13]} 22. Rg4 {[%clk 0:00:57]}  Bf6 {[%clk 0:01:07]} 23. Rd1 {[%clk 0:00:50]}  Nc5 {[%clk 0:00:56]} 24. Qf4 {[%clk 0:00:43]}  Qd8 {[%clk 0:00:52]} 25. Be4 {[%clk 0:00:32]}  Kh8 {[%clk 0:00:47]} 26. h5 {[%clk 0:00:25]}  Bc3 {[%clk 0:00:46]} 27. h6 {[%clk 0:00:23]}  g6 {[%clk 0:00:45]} 28. Qe3 {[%clk 0:00:18]}  f5 {[%clk 0:00:40]} 29. Bxd3 {[%clk 0:00:05]}  fxg4 {[%clk 0:00:36]} 30. Be2 {[%clk 0:00:05]}  Qc7 {[%clk 0:00:30]} 31. Bxg4 {[%clk 0:00:04]}  e5 {[%clk 0:00:22]} 32. a3 {[%clk 0:00:03]}  Bd4 {[%clk 0:00:21]} 33. Rxd4 {[%clk 0:00:03]}  exd4 {[%clk 0:00:19]} 34. Qxd4+ {[%clk 0:00:03]}  Kg8 {[%clk 0:00:19]} 35. Qd5+ {[%clk 0:00:03]}  Rf7 {[%clk 0:00:15]} 36. Qa8+ {[%clk 0:00:02]}  Rf8 {[%clk 0:00:14]} 37. Qd5+ {[%clk 0:00:02]}  Qf7 {[%clk 0:00:11]} 38. Qxc5 {[%clk 0:00:00]}  bxa3 {[%clk 0:00:11]} 0-1


[Site "https://www.chess.com"]

[Event "Titled Tuesday Blitz August 22 Late 2023"]
[White "Bongo Akanga Ndjila, Barthelemy"]
[Black "Tinmaz, Kerem"]
[WhiteFideId "10609431"]
[BlackFideId "44559151"]
[WhiteElo "2043"]
[BlackElo "2359"]
[Result "0-1"]
[Round "3"]
[TimeControl "180+1"]
[Date "2023.08.22"]
[WhiteClock "0:01:50"]
[BlackClock "0:01:54"]
[Board "211"]

1. d4 {[%clk 0:02:56]}  d5 {[%clk 0:02:59]} 2. c4 {[%clk 0:02:55]}  c6 {[%clk 0:03:00]} 3. Nf3 {[%clk 0:02:54]}  Nf6 {[%clk 0:03:00]} 4. e3 {[%clk 0:02:55]}  Bf5 {[%clk 0:03:00]} 5. Bd3 {[%clk 0:02:55]}  Bxd3 {[%clk 0:03:00]} 6. Qxd3 {[%clk 0:02:55]}  e6 {[%clk 0:03:01]} 7. O-O {[%clk 0:02:55]}  Bd6 {[%clk 0:02:59]} 8. b3 {[%clk 0:02:55]}  Nbd7 {[%clk 0:02:59]} 9. Bb2 {[%clk 0:02:55]}  O-O {[%clk 0:02:59]} 10. Nbd2 {[%clk 0:02:55]}  a6 {[%clk 0:02:57]} 11. Rfe1 {[%clk 0:02:42]}  Qe7 {[%clk 0:02:39]} 12. e4 {[%clk 0:02:41]}  dxe4 {[%clk 0:02:39]} 13. Nxe4 {[%clk 0:02:39]}  Nxe4 {[%clk 0:02:40]} 14. Rxe4 {[%clk 0:02:37]}  Nf6 {[%clk 0:02:40]} 15. Re2 {[%clk 0:02:32]}  Rfd8 {[%clk 0:02:36]} 16. Rae1 {[%clk 0:02:23]}  Rd7 {[%clk 0:02:29]} 17. Nh4 {[%clk 0:02:07]}  Ng4 {[%clk 0:01:56]} 18. h3 {[%clk 0:02:01]}  Qxh4 {[%clk 0:01:53]} 19. hxg4 {[%clk 0:01:51]}  Qh2+ {[%clk 0:01:53]} 20. Kf1 {[%clk 0:01:50]}  Qh1# {[%clk 0:01:54]} 0-1


[Site "https://www.chess.com"]

[Event "Titled Tuesday Blitz August 22 Late 2023"]
[White "KorolDimitriy75"]
[Black "OptimusPrimeBR"]
[WhiteElo "2349"]
[BlackElo "2024"]
[Result "1-0"]
[Round "3"]
[TimeControl "180+1"]
[Date "2023.08.22"]
[WhiteClock "0:00:16"]
[BlackClock "0:00:56"]
[Board "213"]

1. d4 {[%clk 0:03:00]}  d5 {[%clk 0:02:59]} 2. c4 {[%clk 0:03:01]}  c6 {[%clk 0:02:58]} 3. Nc3 {[%clk 0:03:01]}  Nf6 {[%clk 0:02:58]} 4. e3 {[%clk 0:03:01]}  e6 {[%clk 0:02:59]} 5. Nf3 {[%clk 0:03:01]}  Bd6 {[%clk 0:02:59]} 6. Bd3 {[%clk 0:03:02]}  Nbd7 {[%clk 0:03:00]} 7. O-O {[%clk 0:03:02]}  O-O {[%clk 0:03:00]} 8. e4 {[%clk 0:03:02]}  dxc4 {[%clk 0:03:00]} 9. Bxc4 {[%clk 0:03:02]}  b5 {[%clk 0:03:00]} 10. Bb3 {[%clk 0:03:00]}  e5 {[%clk 0:03:00]} 11. Bg5 {[%clk 0:02:58]}  a6 {[%clk 0:02:56]} 12. Re1 {[%clk 0:02:42]}  Qc7 {[%clk 0:02:48]} 13. dxe5 {[%clk 0:02:30]}  Bxe5 {[%clk 0:02:41]} 14. Nxe5 {[%clk 0:02:23]}  Qxe5 {[%clk 0:02:36]} 15. f4 {[%clk 0:02:16]}  Qc5+ {[%clk 0:02:31]} 16. Kh1 {[%clk 0:02:16]}  h6 {[%clk 0:02:27]} 17. Bh4 {[%clk 0:02:10]}  Bb7 {[%clk 0:02:16]} 18. e5 {[%clk 0:02:02]}  Nd5 {[%clk 0:02:05]} 19. Nxd5 {[%clk 0:01:41]}  cxd5 {[%clk 0:02:05]} 20. Rc1 {[%clk 0:01:40]}  Qb6 {[%clk 0:02:05]} 21. Bxd5 {[%clk 0:01:37]}  Rac8 {[%clk 0:01:45]} 22. Rxc8 {[%clk 0:01:12]}  Bxc8 {[%clk 0:01:41]} 23. e6 {[%clk 0:01:09]}  fxe6 {[%clk 0:01:36]} 24. Bxe6+ {[%clk 0:01:09]}  Kh8 {[%clk 0:01:35]} 25. Bxd7 {[%clk 0:01:08]}  Bxd7 {[%clk 0:01:28]} 26. Qxd7 {[%clk 0:01:07]}  Rxf4 {[%clk 0:01:26]} 27. Bg3 {[%clk 0:00:32]}  Rf6 {[%clk 0:01:18]} 28. h3 {[%clk 0:00:26]}  Qc5 {[%clk 0:01:11]} 29. Re8+ {[%clk 0:00:17]}  Kh7 {[%clk 0:01:11]} 30. Qd3+ {[%clk 0:00:17]}  Rg6 {[%clk 0:01:11]} 31. Re6 {[%clk 0:00:12]}  Qc1+ {[%clk 0:01:07]} 32. Kh2 {[%clk 0:00:12]}  Qg5 {[%clk 0:01:06]} 33. Qxg6+ {[%clk 0:00:12]}  Qxg6 {[%clk 0:01:06]} 34. Rxg6 {[%clk 0:00:12]}  Kxg6 {[%clk 0:01:06]} 35. Be5 {[%clk 0:00:12]}  Kf5 {[%clk 0:01:06]} 36. Bxg7 {[%clk 0:00:12]}  h5 {[%clk 0:01:07]} 37. a3 {[%clk 0:00:11]}  Ke4 {[%clk 0:01:08]} 38. g4 {[%clk 0:00:11]}  hxg4 {[%clk 0:01:07]} 39. hxg4 {[%clk 0:00:12]}  Kf4 {[%clk 0:01:08]} 40. Kh3 {[%clk 0:00:12]}  a5 {[%clk 0:01:07]} 41. Bc3 {[%clk 0:00:13]}  a4 {[%clk 0:01:08]} 42. Bb4 {[%clk 0:00:12]}  Kg5 {[%clk 0:01:07]} 43. Bc3 {[%clk 0:00:13]}  Kg6 {[%clk 0:01:05]} 44. Kh4 {[%clk 0:00:14]}  Kh6 {[%clk 0:01:05]} 45. g5+ {[%clk 0:00:14]}  Kg6 {[%clk 0:01:06]} 46. Kg4 {[%clk 0:00:14]}  Kf7 {[%clk 0:01:06]} 47. Kf5 {[%clk 0:00:15]}  Kg8 {[%clk 0:01:06]} 48. g6 {[%clk 0:00:16]}  Kf8 {[%clk 0:01:06]} 49. Ke6 {[%clk 0:00:16]}  Kg8 {[%clk 0:01:07]} 50. g7 {[%clk 0:00:15]}  Kh7 {[%clk 0:01:06]} 51. Kf7 {[%clk 0:00:15]}  b4 {[%clk 0:01:05]} 52. g8=Q+ {[%clk 0:00:16]}  Kh6 {[%clk 0:00:56]} 53. Qg6# {[%clk 0:00:16]} 1-0


[Site "https://www.chess.com"]

[Event "Titled Tuesday Blitz August 22 Late 2023"]
[White "Djordjevic, Dejan N"]
[Black "Han, Yichen"]
[WhiteFideId "913316"]
[BlackFideId "1054430"]
[WhiteElo "2019"]
[BlackElo "2344"]
[Result "0-1"]
[Round "3"]
[TimeControl "180+1"]
[Date "2023.08.22"]
[WhiteClock "0:00:00"]
[BlackClock "0:00:02"]
[Board "215"]

1. e4 {[%clk 0:03:00]}  c5 {[%clk 0:02:59]} 2. Nc3 {[%clk 0:03:00]}  e6 {[%clk 0:02:58]} 3. g3 {[%clk 0:03:00]}  Nc6 {[%clk 0:02:57]} 4. Bg2 {[%clk 0:03:00]}  Rb8 {[%clk 0:02:57]} 5. Nge2 {[%clk 0:03:00]}  b5 {[%clk 0:02:57]} 6. O-O {[%clk 0:03:00]}  b4 {[%clk 0:02:57]} 7. Na4 {[%clk 0:02:59]}  Nf6 {[%clk 0:02:53]} 8. b3 {[%clk 0:02:59]}  Be7 {[%clk 0:02:51]} 9. c4 {[%clk 0:02:59]}  bxc3 {[%clk 0:02:46]} 10. dxc3 {[%clk 0:02:58]}  O-O {[%clk 0:02:41]} 11. c4 {[%clk 0:02:56]}  Ne8 {[%clk 0:02:36]} 12. Be3 {[%clk 0:02:51]}  d6 {[%clk 0:02:34]} 13. f4 {[%clk 0:02:50]}  e5 {[%clk 0:02:31]} 14. fxe5 {[%clk 0:02:44]}  Nxe5 {[%clk 0:02:28]} 15. h3 {[%clk 0:02:43]}  Bg5 {[%clk 0:02:17]} 16. Nf4 {[%clk 0:02:42]}  Nf6 {[%clk 0:02:05]} 17. Qc2 {[%clk 0:02:30]}  Nc6 {[%clk 0:01:55]} 18. Rad1 {[%clk 0:02:28]}  Re8 {[%clk 0:01:51]} 19. Nxc5 {[%clk 0:02:24]}  Qe7 {[%clk 0:01:37]} 20. Na4 {[%clk 0:02:07]}  Nxe4 {[%clk 0:01:27]} 21. Bc1 {[%clk 0:01:38]}  Nb4 {[%clk 0:00:47]} 22. Qb1 {[%clk 0:01:09]}  Nxg3 {[%clk 0:00:36]} 23. Rfe1 {[%clk 0:00:51]}  Qxe1+ {[%clk 0:00:28]} 24. Rxe1 {[%clk 0:00:50]}  Rxe1+ {[%clk 0:00:29]} 25. Kf2 {[%clk 0:00:50]}  Rxc1 {[%clk 0:00:24]} 26. Qxc1 {[%clk 0:00:49]}  Nd3+ {[%clk 0:00:16]} 27. Nxd3 {[%clk 0:00:45]}  Bxc1 {[%clk 0:00:17]} 28. Nxc1 {[%clk 0:00:45]}  Nf5 {[%clk 0:00:17]} 29. Nd3 {[%clk 0:00:43]}  Bb7 {[%clk 0:00:17]} 30. Bf1 {[%clk 0:00:35]}  Nd4 {[%clk 0:00:15]} 31. Nf4 {[%clk 0:00:30]}  Bc6 {[%clk 0:00:13]} 32. Nc3 {[%clk 0:00:29]}  Ne6 {[%clk 0:00:12]} 33. Nfd5 {[%clk 0:00:28]}  Kf8 {[%clk 0:00:09]} 34. Bd3 {[%clk 0:00:21]}  Nc5 {[%clk 0:00:06]} 35. Bc2 {[%clk 0:00:21]}  a5 {[%clk 0:00:06]} 36. Ke3 {[%clk 0:00:18]}  Na6 {[%clk 0:00:06]} 37. a3 {[%clk 0:00:16]}  Nc5 {[%clk 0:00:06]} 38. b4 {[%clk 0:00:14]}  axb4 {[%clk 0:00:06]} 39. axb4 {[%clk 0:00:14]}  Nd7 {[%clk 0:00:07]} 40. b5 {[%clk 0:00:13]}  Bxd5 {[%clk 0:00:07]} 41. Nxd5 {[%clk 0:00:13]}  Ne5 {[%clk 0:00:08]} 42. Kd4 {[%clk 0:00:12]}  Nd7 {[%clk 0:00:07]} 43. Nb4 {[%clk 0:00:11]}  Rb6 {[%clk 0:00:04]} 44. Kd5 {[%clk 0:00:10]}  Nc5 {[%clk 0:00:04]} 45. Nc6 {[%clk 0:00:10]}  g6 {[%clk 0:00:02]} 46. Kxd6 {[%clk 0:00:09]}  Ne6 {[%clk 0:00:02]} 47. Bd3 {[%clk 0:00:08]}  Rb7 {[%clk 0:00:02]} 48. c5 {[%clk 0:00:07]}  Nxc5 {[%clk 0:00:01]} 49. Kxc5 {[%clk 0:00:07]}  f5 {[%clk 0:00:02]} 50. b6 {[%clk 0:00:07]}  Kg7 {[%clk 0:00:02]} 51. Nd8 {[%clk 0:00:07]}  Rd7 {[%clk 0:00:02]} 52. b7 {[%clk 0:00:04]}  Rxd8 {[%clk 0:00:02]} 53. Kc6 {[%clk 0:00:05]}  Rb8 {[%clk 0:00:01]} 54. Kc7 {[%clk 0:00:05]}  Rxb7+ {[%clk 0:00:02]} 55. Kxb7 {[%clk 0:00:05]}  Kf6 {[%clk 0:00:03]} 56. Kc6 {[%clk 0:00:06]}  Ke5 {[%clk 0:00:04]} 57. Kc5 {[%clk 0:00:06]}  Kf4 {[%clk 0:00:04]} 58. Kd5 {[%clk 0:00:06]}  Kg3 {[%clk 0:00:05]} 59. Bf1 {[%clk 0:00:05]}  Kf2 {[%clk 0:00:05]} 60. Bc4 {[%clk 0:00:04]}  Kg2 {[%clk 0:00:05]} 61. Ke5 {[%clk 0:00:03]}  Kxh3 {[%clk 0:00:06]} 62. Kf4 {[%clk 0:00:03]}  Kh4 {[%clk 0:00:05]} 63. Bg8 {[%clk 0:00:03]}  h6 {[%clk 0:00:06]} 64. Bh7 {[%clk 0:00:03]}  Kh5 {[%clk 0:00:06]} 65. Bg8 {[%clk 0:00:01]}  Kh4 {[%clk 0:00:05]} 66. Bf7 {[%clk 0:00:01]}  g5+ {[%clk 0:00:03]} 67. Kxf5 {[%clk 0:00:01]}  g4 {[%clk 0:00:04]} 68. Kf4 {[%clk 0:00:00]}  Kh3 {[%clk 0:00:02]} 0-1


[Site "https://www.chess.com"]

[Event "Titled Tuesday Blitz August 22 Late 2023"]
[White "Adan Bermudez, Sergio"]
[Black "rionelG"]
[WhiteFideId "2292726"]
[WhiteElo "1990"]
[BlackElo "2340"]
[Result "0-1"]
[Round "3"]
[TimeControl "180+1"]
[Date "2023.08.22"]
[WhiteClock "0:00:00"]
[BlackClock "0:00:48"]
[Board "216"]

1. d4 {[%clk 0:03:00]}  Nf6 {[%clk 0:02:59]} 2. Nc3 {[%clk 0:03:00]}  d5 {[%clk 0:02:58]} 3. Bf4 {[%clk 0:02:59]}  e6 {[%clk 0:02:51]} 4. e3 {[%clk 0:02:58]}  Be7 {[%clk 0:02:50]} 5. Bd3 {[%clk 0:02:57]}  O-O {[%clk 0:02:50]} 6. Nf3 {[%clk 0:02:54]}  c5 {[%clk 0:02:50]} 7. dxc5 {[%clk 0:02:49]}  Na6 {[%clk 0:02:49]} 8. Bxa6 {[%clk 0:02:28]}  bxa6 {[%clk 0:02:50]} 9. b4 {[%clk 0:02:24]}  a5 {[%clk 0:02:45]} 10. a3 {[%clk 0:02:08]}  Ba6 {[%clk 0:01:58]} 11. b5 {[%clk 0:02:02]}  Bc8 {[%clk 0:01:58]} 12. c6 {[%clk 0:01:44]}  Nh5 {[%clk 0:01:56]} 13. Nd4 {[%clk 0:01:17]}  Nxf4 {[%clk 0:01:43]} 14. exf4 {[%clk 0:01:17]}  Qd6 {[%clk 0:01:42]} 15. Qd3 {[%clk 0:00:36]}  Qxf4 {[%clk 0:01:34]} 16. O-O {[%clk 0:00:32]}  Bf6 {[%clk 0:01:30]} 17. Nce2 {[%clk 0:00:29]}  Qd6 {[%clk 0:01:27]} 18. c4 {[%clk 0:00:25]}  e5 {[%clk 0:01:21]} 19. Nb3 {[%clk 0:00:17]}  e4 {[%clk 0:01:16]} 20. Qxd5 {[%clk 0:00:17]}  Qxd5 {[%clk 0:01:12]} 21. cxd5 {[%clk 0:00:18]}  Bg4 {[%clk 0:01:11]} 22. Ng3 {[%clk 0:00:15]}  Bxa1 {[%clk 0:01:08]} 23. Rxa1 {[%clk 0:00:14]}  Rad8 {[%clk 0:01:08]} 24. Nxa5 {[%clk 0:00:08]}  Rxd5 {[%clk 0:01:07]} 25. a4 {[%clk 0:00:07]}  a6 {[%clk 0:01:04]} 26. Rb1 {[%clk 0:00:05]}  axb5 {[%clk 0:00:59]} 27. axb5 {[%clk 0:00:05]}  Ra8 {[%clk 0:00:58]} 28. Nb7 {[%clk 0:00:00]}  Bc8 {[%clk 0:00:48]} 0-1


[Site "https://www.chess.com"]